[Event "FIDE World Rapid-ch Open 2018"]
[White "Carlsson, Pontus"]
[Black "Saric, Ivan"]
[Site "St. Petersburg"]
[Round "1.51"]
[Annotator "ChessBase"]
[Result "0-1"]
[Date "2018.12.26"]
[WhiteElo "2463"]
[BlackElo "2695"]
[PlyCount "66"]
[TimeControl "900+10"]

1. e4 {[%emt 0:0:0]} g6 {[%emt 0:0:0]} 2. d4 {[%emt 0:0:0]} Bg7 {[%emt 0:0:0]} 3. Nc3 {[%emt 0:1:39]} d6 {[%emt 0:0:0]} 4. f4 {[%emt 0:0:4]} Nf6 {[%emt 0:0:0]} 5. Nf3 {[%emt 0:0:2]} 0-0 {[%emt 0:0:0]} 6. Bd3 {[%emt 0:0:0]} Nc6 {[%emt 0:0:1]} 7. 0-0 {[%emt 0:1:39]} e5 {[%emt 0:0:4]} 8. dxe5 {[%emt 0:0:25]} dxe5 {[%emt 0:0:1]} 9. f5 {[%emt 0:0:2]} Nb4 {[%emt 0:0:9]
} 10. Qe2 {[%emt 0:1:52]} Nxd3 {[%emt 0:0:5]} 11. cxd3 {[%emt 0:0:4]
} gxf5 {[%emt 0:0:53]} 12. Bg5 {[%emt 0:2:31]} h6 {[%emt 0:0:0]} 13. Bh4 {[%emt 0:1:27]} Qd6 {[%emt 0:1:23]} 14. exf5 {[%emt 0:2:17]} Bxf5 {[%emt 0:0:36]} 15. Nxe5 {[%emt 0:0:14]} Bh7 {[%emt 0:0:27]} 16. Rae1 {[%emt 0:2:35]
} Nd7 {[%emt 0:4:0]} 17. Nxd7 {[%emt 0:1:20]} Qxd7 {[%emt 0:0:0]} 18. Ne4 {[%emt 0:0:44]} Qd4+ {[%emt 0:1:41]} 19. Bf2 {[%emt 0:0:26]} Qxb2 {[%emt 0:0:12]} 20. Qxb2 {[%emt 0:0:6]} Bxb2 {[%emt 0:0:1]} 21. Rb1 {[%emt 0:0:1]
} Be5 {[%emt 0:0:21]} 22. Rxb7 {[%emt 0:0:4]} Rfb8 {[%emt 0:0:0]} 23. Rfb1 {[%emt 0:0:6]} Rxb7 {[%emt 0:0:1]} 24. Rxb7 {[%emt 0:0:0]} Rd8 {[%emt 0:0:16]} 25. Bg3 {[%emt 0:0:34]} Bd4+ {[%emt 0:1:26]} 26. Bf2 {[%emt 0:0:31]} Ba1 {[%emt 0:2:30]} 27. h3 {[%emt 0:0:29]} Rxd3 {[%emt 0:0:12]
} 28. Nc5 {[%emt 0:0:3]} Rd1+ {[%emt 0:0:8]} 29. Kh2 {[%emt 0:0:2]
} Be5+ {[%emt 0:0:5]} 30. g3 {[%emt 0:0:26]} Bd6 {[%emt 0:0:0]} 31. Rb8+ {[%emt 0:0:10]} Kg7 {[%emt 0:0:2]} 32. Nb3 {[%emt 0:0:11]} Be4 {[%emt 0:0:5]} 33. Bd4+ {[%emt 0:0:1]} f6 {[%emt 0:0:3]} 0-1

[Event "FIDE World Rapid-ch Open 2018"]
[White "Savchenko, Boris"]
[Black "Maghsoodloo, Parham"]
[Site "St. Petersburg"]
[Round "1.52"]
[Annotator "ChessBase"]
[Result "0-1"]
[Date "2018.12.26"]
[WhiteElo "2562"]
[BlackElo "2688"]
[PlyCount "76"]
[TimeControl "900+10"]

1. e4 {[%emt 0:3:43]} g6 {[%emt 0:0:0]} 2. d4 {[%emt 0:0:3]} Bg7 {[%emt 0:0:0]} 3. Nc3 {[%emt 0:0:3]} d6 {[%emt 0:0:0]} 4. Bg5 {[%emt 0:0:9]} c6 {[%emt 0:0:38]} 5. Qd2 {[%emt 0:0:27]} b5 {[%emt 0:0:19]} 6. f4 {[%emt 0:0:0]} Nd7 {[%emt 0:0:42]} 7. Nf3 {[%emt 0:0:16]} b4 {[%emt 0:1:36]} 8. Na4 {[%emt 0:0:11]
} a5 {[%emt 0:0:17]} 9. a3 {[%emt 0:0:12]} Rb8 {[%emt 0:0:29]} 10. axb4 {[%emt 0:0:16]} axb4 {[%emt 0:0:5]} 11. Bc4 {[%emt 0:0:5]} Ngf6 {[%emt 0:0:14]
} 12. e5 {[%emt 0:0:15]} Ne4 {[%emt 0:0:16]} 13. Qe3 {[%emt 0:0:0]} d5 {[%emt 0:0:35]} 14. Bd3 {[%emt 0:0:6]} Nxg5 {[%emt 0:0:31]} 15. Nxg5 {[%emt 0:0:29]} e6 {[%emt 0:3:15]} 16. h4 {[%emt 0:0:44]} Qe7 {[%emt 0:0:0]} 17. Ke2 {[%emt 0:0:27]} h6 {[%emt 0:1:39]} 18. Nf3 {[%emt 0:0:11]} Ra8 {[%emt 0:0:10]} 19. h5 {[%emt 0:1:7]} gxh5 {[%emt 0:0:4]} 20. f5 {[%emt 0:1:12]
} exf5 {[%emt 0:0:1]} 21. Rxh5 {[%emt 0:0:10]} c5 {[%emt 0:0:0]} 22. c3 {[%emt 0:1:10]} bxc3 {[%emt 0:0:46]} 23. bxc3 {[%emt 0:0:2]} cxd4 {[%emt 0:1:18]} 24. cxd4 {[%emt 0:0:2]} Qb4 {[%emt 0:1:9]} 25. Nh4 {[%emt 0:1:35]
} Rxa4 {[%emt 0:1:34]} 26. Rxa4 {[%emt 0:0:3]} Qxa4 {[%emt 0:0:0]} 27. Nxf5 {[%emt 0:0:3]} Ba6 28. Kf2 {[%emt 0:2:16]} Bxd3 {[%emt 0:0:0]} 29. Qxd3 {[%emt 0:0:15]} Bf8 {[%emt 0:0:1]} 30. Qc3 {[%emt 0:0:53]} Qc4 {[%emt 0:0:29]} 31. Qb2 {[%emt 0:0:13]} Rg8 {[%emt 0:0:8]} 32. Rh3 {[%emt 0:0:14]
} Rg5 {[%emt 0:0:4]} 33. Ne3 {[%emt 0:0:28]} Qc6 {[%emt 0:0:0]} 34. Rh1 {[%emt 0:0:4]} Qb6 {[%emt 0:0:16]} 35. Qa2 {[%emt 0:0:15]} Qxd4 {[%emt 0:0:18]} 36. Rd1 {[%emt 0:0:19]} Qf4+ {[%emt 0:0:1]} 37. Ke2 {[%emt 0:0:2]
} Rxe5 {[%emt 0:0:3]} 38. Rd3 {[%emt 0:0:9]} Bc5 {[%emt 0:0:0]} 0-1

[Event "FIDE World Rapid-ch Open 2018"]
[White "Kazhgaleyev, Murtas"]
[Black "Bocharov, Ivan"]
[Site "St. Petersburg"]
[Round "1.53"]
[Annotator "ChessBase"]
[Result "1-0"]
[Date "2018.12.26"]
[WhiteElo "2587"]
[BlackElo "2563"]
[PlyCount "143"]
[TimeControl "900+10"]

1. d4 {[%emt 0:0:0]} d5 {[%emt 0:2:3]} 2. c4 {[%emt 0:0:14]} c6 {[%emt 0:0:0]} 3. Nc3 {[%emt 0:0:8]} Nf6 {[%emt 0:0:2]} 4. e3 {[%emt 0:0:3]} a6 {[%emt 0:0:33]} 5. Nf3 {[%emt 0:0:19]} Bf5 {[%emt 0:0:2]} 6. Qb3 {[%emt 0:0:0]} Ra7 {[%emt 0:0:1]} 7. Nh4 {[%emt 0:0:47]} Bc8 {[%emt 0:0:1]} 8. Qc2 {[%emt 0:0:12]} e6 {[%emt 0:0:4]} 9. Nf3 {[%emt 0:0:11]} dxc4 {[%emt 0:0:0]} 10. Bxc4 {[%emt 0:0:3]} c5 {[%emt 0:0:4]} 11. 0-0 {[%emt 0:0:11]} b5 {[%emt 0:0:21]} 12. Be2 {[%emt 0:0:2]} Nbd7 {[%emt 0:1:34]} 13. Rd1 {[%emt 0:0:36]
} Bb7 {[%emt 0:0:50]} 14. b3 {[%emt 0:2:1]} Qa8 {[%emt 0:0:0]} 15. Bb2 {[%emt 0:0:44]} Be7 {[%emt 0:0:1]} 16. dxc5 {[%emt 0:0:36]} Bxc5 {[%emt 0:0:36]} 17. Nxb5 {[%emt 0:3:10]} axb5 {[%emt 0:0:8]} 18. Bxb5 {[%emt 0:0:35]} Bxf3 {[%emt 0:0:23]} 19. gxf3 {[%emt 0:0:29]} 0-0 {[%emt 0:0:0]} 20. Bxf6 {[%emt 0:0:4]} Nxf6 {[%emt 0:0:2]} 21. Qxc5 {[%emt 0:0:0]} Rxa2 {[%emt 0:0:26]} 22. Rxa2 {[%emt 0:0:12]} Qxa2 {[%emt 0:0:2]} 23. Bc4 {[%emt 0:0:9]} Qc2 {[%emt 0:0:11]} 24. Qd6 {[%emt 0:0:29]} h6 {[%emt 0:0:0]} 25. Qd3 {[%emt 0:0:8]} Qb2 {[%emt 0:0:3]} 26. Qd4 {[%emt 0:0:13]} Qc2 {[%emt 0:0:3]} 27. Qd3 {[%emt 0:0:26]} Qb2 {[%emt 0:0:1]} 28. f4 {[%emt 0:0:34]
} Ra8 {[%emt 0:0:37]} 29. Rb1 {[%emt 0:0:27]} Ra1 {[%emt 0:0:0]} 30. Rxa1 {[%emt 0:0:2]} Qxa1+ {[%emt 0:0:0]} 31. Kg2 {[%emt 0:0:3]} Qa8+ {[%emt 0:0:1]} 32. f3 {[%emt 0:0:12]} Qa2+ {[%emt 0:0:2]} 33. Qe2 {[%emt 0:0:8]
} Qb1 {[%emt 0:0:3]} 34. Qd2 {[%emt 0:0:19]} g5 {[%emt 0:0:0]} 35. fxg5 {[%emt 0:0:20]} hxg5 {[%emt 0:0:1]} 36. e4 {[%emt 0:0:3]} Nh7 {[%emt 0:0:19]} 37. h3 {[%emt 0:1:56]} Kf8 {[%emt 0:0:2]} 38. b4 {[%emt 0:0:7]
} Nf6 {[%emt 0:0:3]} 39. Qxg5 {[%emt 0:0:24]} Qc2+ {[%emt 0:0:0]} 40. Kg3 {[%emt 0:0:14]} Qxc4 {[%emt 0:0:33]} 41. Qxf6 {[%emt 0:0:4]
} Qxb4 {[%emt 0:0:3]} 42. Kg4 {[%emt 0:0:29]} Qb1 {[%emt 0:0:20]} 43. h4 {[%emt 0:0:10]
} Kg8 {[%emt 0:0:17]} 44. Kh5 {[%emt 0:0:9]} Qb4 {[%emt 0:0:0]} 45. Kg5 {[%emt 0:0:40]} Qc5+ {[%emt 0:0:8]} 46. Kg4 {[%emt 0:0:7]} Qb6 {[%emt 0:0:40]} 47. Kh5 {[%emt 0:0:15]} Qb4 {[%emt 0:0:3]} 48. Qg5+ {[%emt 0:0:21]
} Kh7 {[%emt 0:0:2]} 49. Qe5 {[%emt 0:0:19]} Kg8 {[%emt 0:0:0]} 50. Kg5 {[%emt 0:0:14]} Qd2+ {[%emt 0:0:1]} 51. Kh5 {[%emt 0:0:7]} Qb4 {[%emt 0:0:1]} 52. Qf6 {[%emt 0:0:26]} Qa3 {[%emt 0:0:29]} 53. Kg4 {[%emt 0:0:23]
} Qa2 {[%emt 0:0:15]} 54. Qg5+ {[%emt 0:0:23]} Kh7 {[%emt 0:0:0]} 55. Qh5+ {[%emt 0:0:12]} Kg7 {[%emt 0:0:2]} 56. Qe5+ {[%emt 0:0:5]} Kh7 {[%emt 0:0:2]} 57. Qf6 {[%emt 0:0:26]} Kg8 {[%emt 0:0:8]} 58. Kh5 {[%emt 0:0:18]
} Qa3 {[%emt 0:0:4]} 59. Qg5+ {[%emt 0:0:4]} Kh7 {[%emt 0:0:0]} 60. Kg4 {[%emt 0:0:13]} Qa1 {[%emt 0:0:19]} 61. Qe3 {[%emt 0:0:22]} Qg7+ {[%emt 0:0:4]} 62. Kh3 {[%emt 0:0:6]} Qa1 {[%emt 0:0:1]} 63. e5 {[%emt 0:0:36]
} Kg6 {[%emt 0:0:43]} 64. Kg4 {[%emt 0:0:13]} Kh7 {[%emt 0:0:0]} 65. Kh5 Qd1 {[%emt 0:0:56]} 66. Qf4 {[%emt 0:0:38]} Qd7 {[%emt 0:0:52]} 67. Qh6+ {[%emt 0:0:10]} Kg8 {[%emt 0:0:1]} 68. Qg5+ {[%emt 0:0:3]} Kh7 {[%emt 0:0:0]
} 69. Qf6 {[%emt 0:0:20]} Qb7 {[%emt 0:0:17]} 70. Kg5 {[%emt 0:0:0]} Qa7 {[%emt 0:0:5]} 71. Qh6+ {[%emt 0:0:18]} Kg8 {[%emt 0:0:0]} 72. Kf6 {[%emt 0:0:3]} 1-0

[Event "FIDE World Rapid-ch Open 2018"]
[White "Jones, Gawain C B"]
[Black "Usmanov, Vasily"]
[Site "St. Petersburg"]
[Round "1.54"]
[Annotator "ChessBase"]
[Result "1/2-1/2"]
[Date "2018.12.26"]
[WhiteElo "2682"]
[BlackElo "2450"]
[PlyCount "150"]
[TimeControl "900+10"]

1. e4 {[%emt 0:0:0]} d5 {[%emt 0:0:0]} 2. exd5 Qxd5 {[%emt 0:0:0]} 3. Nc3 {[%emt 0:0:10]} Qd8 {[%emt 0:0:0]} 4. Bc4 {[%emt 0:0:18]} c6 {[%emt 0:0:0]} 5. Nf3 {[%emt 0:0:17]} Nf6 {[%emt 0:0:7]} 6. d4 {[%emt 0:0:24]} b5 {[%emt 0:0:4]
} 7. Bb3 {[%emt 0:0:19]} e6 {[%emt 0:0:5]} 8. a4 {[%emt 0:0:0]} b4 {[%emt 0:0:4]} 9. Ne2 {[%emt 0:0:2]} Be7 {[%emt 0:0:11]} 10. a5 {[%emt 0:0:12]
} 0-0 {[%emt 0:0:3]} 11. 0-0 {[%emt 0:0:3]} Nbd7 {[%emt 0:0:0]} 12. Nf4 {[%emt 0:0:26]} Ba6 {[%emt 0:0:50]} 13. Re1 {[%emt 0:0:2]} c5 {[%emt 0:1:0]} 14. Ba2 {[%emt 0:1:38]} c4 {[%emt 0:1:57]} 15. Qe2 {[%emt 0:0:0]} Qxa5 {[%emt 0:2:38]} 16. Nxe6 {[%emt 0:1:13]} fxe6 {[%emt 0:0:22]} 17. Qxe6+ {[%emt 0:0:7]} Kh8 {[%emt 0:0:27]} 18. Bd2 {[%emt 0:0:12]} Rae8 {[%emt 0:1:10]
} 19. Ng5 {[%emt 0:0:20]} c3 {[%emt 0:1:40]} 20. bxc3 {[%emt 0:0:0]} bxc3 {[%emt 0:0:1]} 21. Be3 {[%emt 0:0:41]} Ba3 {[%emt 0:2:9]} 22. Nf7+ {[%emt 0:0:2]} Rxf7 {[%emt 0:0:1]} 23. Qxf7 {[%emt 0:0:2]} Re7 {[%emt 0:0:43]
} 24. Qb3 {[%emt 0:0:2]} Bb2 {[%emt 0:0:1]} 25. Bg5 {[%emt 0:0:0]} Qd8 {[%emt 0:1:24]} 26. Qb4 {[%emt 0:0:56]} Re8 {[%emt 0:0:44]} 27. Bf7 {[%emt 0:0:23]} Rf8 {[%emt 0:0:59]} 28. Rxa6 {[%emt 0:0:5]} Rxf7 {[%emt 0:0:2]
} 29. Rxa7 {[%emt 0:2:31]} h6 {[%emt 0:0:1]} 30. Bh4 {[%emt 0:0:0]} Nd5 {[%emt 0:0:5]} 31. Bxd8 {[%emt 0:0:24]} Nxb4 {[%emt 0:0:2]} 32. Re2 {[%emt 0:0:6]} Ne5 {[%emt 0:0:34]} 33. Re7 {[%emt 0:0:42]} Rxe7 {[%emt 0:0:31]
} 34. Bxe7 {[%emt 0:0:2]} Nec6 {[%emt 0:0:1]} 35. Bxb4 {[%emt 0:0:14]
} Nxb4 {[%emt 0:0:1]} 36. Kf1 {[%emt 0:0:13]} Kg8 {[%emt 0:0:0]} 37. Ke1 {[%emt 0:0:5]} Bc1 {[%emt 0:0:30]} 38. Kd1 {[%emt 0:0:7]} Bg5 {[%emt 0:0:5]} 39. Re5 {[%emt 0:0:22]} Nc6 {[%emt 0:0:11]} 40. Rc5 {[%emt 0:0:5]
} Nxd4 {[%emt 0:0:3]} 41. Rxc3 {[%emt 0:0:2]} Kf7 {[%emt 0:0:0]} 42. Rc7+ {[%emt 0:0:10]} Kf6 {[%emt 0:0:8]} 43. c3 {[%emt 0:0:4]} Ne6 {[%emt 0:0:1]} 44. Ra7 {[%emt 0:0:4]} Ke5 {[%emt 0:0:5]} 45. Ra5+ {[%emt 0:0:8]
} Kd6 {[%emt 0:0:2]} 46. g3 {[%emt 0:0:5]} Nc5 {[%emt 0:0:0]} 47. Ke2 {[%emt 0:0:3]} Kd5 {[%emt 0:0:4]} 48. Kf3 {[%emt 0:0:31]} Bf6 {[%emt 0:0:13]} 49. Ra3 {[%emt 0:0:1]} Kc4 {[%emt 0:0:8]} 50. Kg4 {[%emt 0:0:4]
} Ne4 {[%emt 0:0:27]} 51. f3 {[%emt 0:0:6]} Nxc3 {[%emt 0:0:0]} 52. Kf5 {[%emt 0:0:1]} Nb5 {[%emt 0:0:6]} 53. Ra4+ {[%emt 0:0:22]} Kd3 {[%emt 0:0:22]} 54. f4 {[%emt 0:0:10]} Ke3 {[%emt 0:0:5]} 55. Kg6 {[%emt 0:0:22]
} Kf3 {[%emt 0:0:12]} 56. Kh5 {[%emt 0:0:32]} Nd4 {[%emt 0:0:0]} 57. Ra3+ {[%emt 0:0:5]} Kg2 {[%emt 0:0:9]} 58. Ra2+ {[%emt 0:0:21]} Kh3 {[%emt 0:0:7]} 59. Rf2 {[%emt 0:0:19]} Nf5 {[%emt 0:0:50]} 60. g4 {[%emt 0:0:12]
} Nh4 {[%emt 0:0:19]} 61. g5 {[%emt 0:0:6]} hxg5 {[%emt 0:0:0]} 62. fxg5 {[%emt 0:0:2]} Bd4 {[%emt 0:0:2]} 63. Rf4 {[%emt 0:0:36]} g6+ {[%emt 0:0:11]} 64. Kh6 {[%emt 0:0:1]} Be5 {[%emt 0:0:12]} 65. Re4 {[%emt 0:0:33]
} Bxh2 {[%emt 0:0:7]} 66. Kg7 {[%emt 0:0:2]} Bd6 {[%emt 0:0:0]} 67. Kf7 {[%emt 0:0:5]} Kg3 {[%emt 0:0:12]} 68. Ra4 {[%emt 0:0:7]} Bf4 {[%emt 0:0:17]} 69. Kf6 {[%emt 0:0:1]} Kg4 {[%emt 0:0:8]} 70. Rb4 {[%emt 0:0:4]
} Kg3 {[%emt 0:0:27]} 71. Ra4 {[%emt 0:0:17]} Kf3 {[%emt 0:0:0]} 72. Rb4 {[%emt 0:0:3]} Kg4 {[%emt 0:0:9]} 73. Ra4 {[%emt 0:0:1]} Nf3 {[%emt 0:0:14]} 74. Rxf4+ {[%emt 0:0:11]} Kxf4 {[%emt 0:0:1]} 75. Kxg6 {[%emt 0:0:2]
} Nxg5 {[%emt 0:0:2]} 1/2-1/2

[Event "FIDE World Rapid-ch Open 2018"]
[White "Kevlishvili, Robby"]
[Black "Najer, Evgeniy"]
[Site "St. Petersburg"]
[Round "1.55"]
[Annotator "ChessBase"]
[Result "1-0"]
[Date "2018.12.26"]
[WhiteElo "2451"]
[BlackElo "2670"]
[PlyCount "93"]
[TimeControl "900+10"]

1. e4 {[%emt 0:0:0]} e5 {[%emt 0:2:48]} 2. Nf3 {[%emt 0:0:0]} Nc6 {[%emt 0:0:1]
} 3. Bb5 {[%emt 0:0:0]} a6 {[%emt 0:0:4]} 4. Ba4 {[%emt 0:0:0]} Nf6 {[%emt 0:0:2]} 5. 0-0 {[%emt 0:0:9]} Be7 {[%emt 0:0:8]} 6. Re1 {[%emt 0:0:3]
} b5 {[%emt 0:0:11]} 7. Bb3 {[%emt 0:0:2]} 0-0 {[%emt 0:0:3]
} 8. d3 {[%emt 0:1:19]} d6 {[%emt 0:0:5]} 9. a4 {[%emt 0:0:16]} Bb7 {[%emt 0:0:15]
} 10. Bd2 {[%emt 0:1:4]} Qd7 {[%emt 0:1:48]} 11. Nc3 {[%emt 0:0:0]} Na5 {[%emt 0:0:23]} 12. Ba2 {[%emt 0:0:9]} c5 {[%emt 0:0:12]} 13. Ne2 {[%emt 0:0:34]} Bd8 {[%emt 0:1:32]} 14. Ng3 {[%emt 0:1:31]} c4 {[%emt 0:0:0]} 15. Nf5 {[%emt 0:0:52]} cxd3 {[%emt 0:0:39]} 16. cxd3 {[%emt 0:0:4]
} bxa4 {[%emt 0:0:5]} 17. Bb4 {[%emt 0:0:26]} Ne8 {[%emt 0:0:55]} 18. d4 {[%emt 0:1:19]
} exd4 {[%emt 0:1:35]} 19. N3xd4 {[%emt 0:0:2]} g6 {[%emt 0:0:0]} 20. Nh6+ {[%emt 0:0:14]} Kg7 {[%emt 0:0:17]} 21. Nxf7 {[%emt 0:0:49]
} Rxf7 {[%emt 0:0:32]} 22. Ne6+ {[%emt 0:0:17]} Kg8 {[%emt 0:0:1]} 23. Nxd8 {[%emt 0:0:9]} Qxd8 {[%emt 0:0:1]} 24. Qxa4 {[%emt 0:0:8]} Nc6 {[%emt 0:0:0]} 25. Bc3 {[%emt 0:0:6]} Qe7 {[%emt 0:1:31]} 26. Re3 {[%emt 0:0:34]} Nc7 {[%emt 0:1:18]} 27. Bxf7+ {[%emt 0:0:7]} Qxf7 {[%emt 0:0:15]} 28. Rf3 {[%emt 0:0:1]
} Qe7 {[%emt 0:1:3]} 29. Qb3+ {[%emt 0:0:2]} Ne6 {[%emt 0:0:0]} 30. Bf6 {[%emt 0:1:32]} Qd7 {[%emt 0:0:3]} 31. Rd1 {[%emt 0:0:9]} Rc8 {[%emt 0:2:49]} 32. Qa3 {[%emt 0:0:31]} Ncd4 {[%emt 0:0:24]} 33. Bxd4 {[%emt 0:1:15]
} Nxd4 {[%emt 0:0:1]} 34. Qa2+ {[%emt 0:0:18]} Kg7 {[%emt 0:0:0]} 35. Rfd3 {[%emt 0:0:6]} Nb5 {[%emt 0:0:1]} 36. Qa4 {[%emt 0:0:8]} Qe6 {[%emt 0:0:13]} 37. f3 {[%emt 0:0:11]} Qe5 {[%emt 0:0:1]} 38. Qb4 {[%emt 0:0:14]
} h5 {[%emt 0:0:25]} 39. Qd2 {[%emt 0:0:8]} h4 {[%emt 0:0:13]
} 40. h3 {[%emt 0:0:4]} Rc4 {[%emt 0:0:14]} 41. Kh1 {[%emt 0:0:10]} Qf6 {[%emt 0:0:12]
} 42. Rc1 {[%emt 0:0:38]} Rxc1+ {[%emt 0:0:4]} 43. Qxc1 {[%emt 0:0:1]
} Qe5 {[%emt 0:0:4]} 44. Qd2 {[%emt 0:0:7]} Kh7 {[%emt 0:0:0]} 45. Qf2 {[%emt 0:0:2]} Qf4 {[%emt 0:0:8]} 46. Qe1 {[%emt 0:0:15]} Bc8 {[%emt 0:0:23]} 47. Rd1 {[%emt 0:0:56]} 1-0

[Event "FIDE World Rapid-ch Open 2018"]
[White "Pantsulaia, Levan"]
[Black "Kobo, Ori"]
[Site "St. Petersburg"]
[Round "1.56"]
[Annotator "ChessBase"]
[Result "1-0"]
[Date "2018.12.26"]
[WhiteElo "2597"]
[BlackElo "2494"]
[PlyCount "69"]
[TimeControl "900+10"]

1. Nf3 {[%emt 0:0:0]} d5 {[%emt 0:0:0]} 2. g3 {[%emt 0:0:0]} g6 {[%emt 0:0:0]} 3. c4 {[%emt 0:0:19]} dxc4 {[%emt 0:0:6]} 4. Na3 {[%emt 0:0:9]} Bg7 {[%emt 0:0:19]} 5. Nxc4 {[%emt 0:0:2]} Nc6 {[%emt 0:0:1]} 6. d3 {[%emt 0:0:29]
} e5 {[%emt 0:0:11]} 7. Bd2 {[%emt 0:0:6]} Nge7 {[%emt 0:0:0]} 8. b4 {[%emt 0:0:32]} Be6 {[%emt 0:1:46]} 9. Rc1 {[%emt 0:0:10]} 0-0 {[%emt 0:0:25]
} 10. Bg2 {[%emt 0:0:22]} a6 {[%emt 0:0:21]} 11. a4 {[%emt 0:0:0]} Nd5 {[%emt 0:2:34]} 12. b5 {[%emt 0:3:20]} axb5 {[%emt 0:0:1]} 13. axb5 {[%emt 0:0:1]} Nd4 {[%emt 0:0:3]} 14. Nfxe5 {[%emt 0:0:12]} Nxb5 {[%emt 0:0:13]
} 15. 0-0 {[%emt 0:0:20]} Na3 {[%emt 0:1:26]} 16. e3 {[%emt 0:0:0]} Nxc4 {[%emt 0:0:24]} 17. Nxc4 {[%emt 0:0:2]} Qd7 {[%emt 0:1:12]} 18. d4 {[%emt 0:0:8]} Bh3 {[%emt 0:1:3]} 19. Bxh3 {[%emt 0:0:30]} Qxh3 {[%emt 0:0:2]
} 20. Qb3 {[%emt 0:0:1]} b6 {[%emt 0:1:15]} 21. Ne5 {[%emt 0:0:0]} Rad8 {[%emt 0:0:2]} 22. e4 {[%emt 0:1:16]} Nf6 {[%emt 0:1:24]} 23. Rxc7 {[%emt 0:0:5]} Ng4 {[%emt 0:0:12]} 24. Nxg4 {[%emt 0:0:2]} Qxg4 {[%emt 0:0:2]
} 25. Bb4 {[%emt 0:0:4]} Bxd4 {[%emt 0:0:23]} 26. Bxf8 {[%emt 0:0:5]
} Rxf8 {[%emt 0:0:1]} 27. Qd5 {[%emt 0:0:14]} Bc5 {[%emt 0:0:0]} 28. Qd3 {[%emt 0:1:12]} h5 {[%emt 0:0:30]} 29. h4 {[%emt 0:0:42]} Re8 {[%emt 0:0:17]
} 30. Re1 {[%emt 0:0:6]} Ra8 {[%emt 0:1:15]} 31. Qb3 {[%emt 0:0:0]} Rf8 {[%emt 0:0:54]} 32. Kg2 {[%emt 0:0:5]} Bd6 {[%emt 0:0:48]} 33. Rb7 {[%emt 0:0:51]} Be5 {[%emt 0:0:34]} 34. Qd5 {[%emt 0:0:30]} Bc3 {[%emt 0:0:42]
} 35. Re3 {[%emt 0:0:23]} 1-0

[Event "FIDE World Rapid-ch Open 2018"]
[White "Christiansen, Johan-Sebastian"]
[Black "Demchenko, Anton"]
[Site "St. Petersburg"]
[Round "1.57"]
[Annotator "ChessBase"]
[Result "1/2-1/2"]
[Date "2018.12.26"]
[WhiteElo "2555"]
[BlackElo "2679"]
[PlyCount "89"]
[TimeControl "900+10"]

1. e4 {[%emt 0:0:0]} c5 {[%emt 0:1:13]} 2. Nf3 {[%emt 0:0:1]} Nc6 {[%emt 0:0:2]
} 3. Bb5 {[%emt 0:0:6]} Nf6 {[%emt 0:0:6]} 4. Nc3 {[%emt 0:0:0]} Qc7 {[%emt 0:0:10]} 5. 0-0 {[%emt 0:0:23]} Nd4 {[%emt 0:0:4]} 6. Re1 {[%emt 0:0:26]} a6 {[%emt 0:0:14]} 7. Bf1 {[%emt 0:0:24]} Ng4 {[%emt 0:0:0]} 8. g3 {[%emt 0:0:6]} Nxf3+ {[%emt 0:0:9]} 9. Qxf3 {[%emt 0:0:2]} Ne5 {[%emt 0:0:1]} 10. Qe2 {[%emt 0:0:52]} e6 {[%emt 0:0:29]} 11. Bg2 {[%emt 0:0:24]
} Be7 {[%emt 0:1:6]} 12. d3 {[%emt 0:0:4]} h5 {[%emt 0:0:53]
} 13. f4 {[%emt 0:1:58]} Nc6 {[%emt 0:2:23]} 14. Nd5 {[%emt 0:0:11]} exd5 {[%emt 0:2:58]
} 15. exd5 {[%emt 0:0:2]} Qd6 {[%emt 0:0:19]} 16. c3 {[%emt 0:0:0]} f5 {[%emt 0:0:36]} 17. dxc6 {[%emt 0:1:7]} dxc6 {[%emt 0:0:3]} 18. Be3 {[%emt 0:0:15]} Be6 {[%emt 0:2:1]} 19. Bxc5 {[%emt 0:1:59]} Qxc5+ {[%emt 0:0:1]
} 20. d4 {[%emt 0:0:1]} Bc4 {[%emt 0:0:12]} 21. dxc5 {[%emt 0:0:0]} Bxe2 {[%emt 0:0:1]} 22. Rxe2 {[%emt 0:0:0]} Kf7 {[%emt 0:0:6]} 23. b4 {[%emt 0:0:57]} Bf6 {[%emt 0:0:15]} 24. Rc1 {[%emt 0:0:32]} Rhd8 {[%emt 0:1:37]
} 25. Bf1 {[%emt 0:0:5]} a5 {[%emt 0:0:43]} 26. a3 {[%emt 0:0:0]} axb4 {[%emt 0:0:11]} 27. axb4 {[%emt 0:0:1]} Ra3 {[%emt 0:0:17]} 28. Rec2 {[%emt 0:0:1]} Rda8 {[%emt 0:1:29]} 29. Bc4+ {[%emt 0:0:42]} Kf8 {[%emt 0:0:20]
} 30. Kg2 {[%emt 0:0:11]} Ra1 {[%emt 0:0:6]} 31. Rxa1 {[%emt 0:0:5]
} Rxa1 {[%emt 0:0:2]} 32. Be6 {[%emt 0:0:1]} Ra3 {[%emt 0:0:0]} 33. Bxf5 {[%emt 0:1:9]} Rxc3 {[%emt 0:0:20]} 34. Rxc3 {[%emt 0:1:22]} Bxc3 {[%emt 0:0:2]} 35. Bc8 {[%emt 0:0:1]} Bxb4 {[%emt 0:0:3]} 36. Bxb7 {[%emt 0:0:2]
} Bxc5 {[%emt 0:0:2]} 37. Bxc6 {[%emt 0:0:3]} g6 {[%emt 0:0:0]} 38. Kf3 {[%emt 0:0:9]} Kg7 {[%emt 0:0:1]} 39. Be8 {[%emt 0:0:3]} Kh6 {[%emt 0:0:8]} 40. Ke4 {[%emt 0:0:4]} Bg1 {[%emt 0:0:7]} 41. h3 {[%emt 0:0:0]} Bf2 {[%emt 0:0:4]} 42. Kf3 {[%emt 0:0:20]} Be1 {[%emt 0:0:1]} 43. g4 {[%emt 0:0:10]} hxg4+ {[%emt 0:0:2]} 44. hxg4 {[%emt 0:0:3]} g5 {[%emt 0:0:2]
} 45. Ke4 1/2-1/2

[Event "FIDE World Rapid-ch Open 2018"]
[White "Alekseev, Evgeny"]
[Black "Apryshko, Gleb"]
[Site "St. Petersburg"]
[Round "1.58"]
[Annotator "ChessBase"]
[Result "1-0"]
[Date "2018.12.26"]
[WhiteElo "2639"]
[BlackElo "2385"]
[PlyCount "67"]
[TimeControl "900+10"]

1. Nf3 {[%emt 0:0:0]} g6 {[%emt 0:1:33]} 2. e4 {[%emt 0:0:7]} Bg7 {[%emt 0:0:1]
} 3. d4 {[%emt 0:0:11]} d6 {[%emt 0:0:2]} 4. Bd3 {[%emt 0:0:0]} Nc6 {[%emt 0:0:6]} 5. d5 {[%emt 0:1:52]} Nb4 {[%emt 0:0:1]} 6. Be2 {[%emt 0:0:4]
} a5 {[%emt 0:0:1]} 7. c4 {[%emt 0:0:48]} Nf6 {[%emt 0:0:54]} 8. Nc3 {[%emt 0:0:6]} 0-0 {[%emt 0:0:2]} 9. 0-0 {[%emt 0:1:18]} c6 {[%emt 0:4:46]
} 10. h3 {[%emt 0:1:26]} Bd7 {[%emt 0:0:43]} 11. Be3 {[%emt 0:0:0]} Qc7 {[%emt 0:1:22]} 12. Rc1 {[%emt 0:1:31]} Rfd8 {[%emt 0:0:34]} 13. Qd2 {[%emt 0:0:16]} Be8 {[%emt 0:1:18]} 14. Bh6 {[%emt 0:2:13]} Bh8 {[%emt 0:0:9]
} 15. Qe3 {[%emt 0:0:53]} Na6 {[%emt 0:1:3]} 16. Rfe1 {[%emt 0:0:6]
} Nd7 {[%emt 0:0:45]} 17. Bf1 {[%emt 0:0:24]} Nac5 {[%emt 0:0:0]} 18. Bg5 {[%emt 0:1:39]} Kf8 {[%emt 0:0:28]} 19. Qf4 {[%emt 0:0:18]} Ne5 {[%emt 0:1:2]} 20. Nxe5 Bxe5 {[%emt 0:0:1]} 21. Qh4 {[%emt 0:0:19]} h5 {[%emt 0:0:1]
} 22. g4 {[%emt 0:0:15]} f6 {[%emt 0:0:5]} 23. Bh6+ {[%emt 0:0:0]} Kg8 {[%emt 0:0:1]} 24. f4 Bd4+ 25. Kh2 {[%emt 0:0:56]} Kh7 {[%emt 0:0:0]} 26. g5 {[%emt 0:0:0]} Qb6 {[%emt 0:0:1]} 27. Rc2 {[%emt 0:0:9]} Bf7 {[%emt 0:1:13]} 28. Qg3 {[%emt 0:0:48]} e5 {[%emt 0:0:49]} 29. Kh1 {[%emt 0:0:5]
} exf4 {[%emt 0:0:15]} 30. Qxf4 {[%emt 0:0:2]} Be5 {[%emt 0:0:0]} 31. Qd2 {[%emt 0:0:34]} Re8 {[%emt 0:0:22]} 32. Bg2 {[%emt 0:0:14]} Qb4 {[%emt 0:0:51]} 33. gxf6 {[%emt 0:0:25]} Qxc4 {[%emt 0:0:2]} 34. Bg7 {[%emt 0:0:9]
} 1-0